bitfinex/quotes_SOLUSD_20251216
["timestamp","ask_amount","ask_price","bid_price","bid_amount"]
[1765861279036,8.01143639,126.4,126.38,8.68]
[1765861279337,8.73143639,126.4,126.38,8.68]
[1765861279513,8.73143639,126.4,126.39,3.56993107]
[1765861279514,0.1,126.4,126.39,3.56993107]
[1765861280534,0.1,126.4,126.39,11.48194942]
[1765861280715,0.1,126.4,126.39,8.59201835]
[1765861280917,0.1,126.4,126.39,11.48194942]
[1765861281616,0.1,126.4,126.39,8.59201835]
[1765861281817,0.1,126.4,126.39,11.48194942]
[1765861283551,0.1,126.4,126.39,8.59201835]
[1765861283846,0.1,126.4,126.39,11.48194942]
[1765861287342,0.1,126.4,126.39,20.29189434]
[1765861289146,0.1,126.43,126.39,79.63203199]
[1765861289326,0.1,126.43,126.42,11.69987599]
[1765861289527,0.1,126.43,126.42,20.37987599]
[1765861289860,0.1,126.43,126.42,21.05987599]
[1765861290351,0.1,126.43,126.42,28.97001679]
[1765861291255,0.1,126.43,126.42,25.40008572]
[1765861291446,0.1,126.43,126.42,28.97001679]
[1765861291640,0.1,126.43,126.42,28.29001679]
[1765861292027,0.1,126.43,126.42,28.97001679]
[1765861292632,0.1,126.43,126.42,90.87001679]
[1765861293748,0.1,126.43,126.42,87.98008572]
[1765861294055,0.1,126.43,126.42,90.87001679]
[1765861298932,0.1,126.43,126.42,61.9]
[1765861299143,0.1,126.43,126.42,17.2701408]
[1765861299347,0.1,126.43,126.42,20.16007187]
[1765861300633,0.1,126.43,126.42,17.2701408]
[1765861300970,3.66993107,126.43,126.38,3.16994888]
[1765861301132,3.66993107,126.43,126.39,8.68]
[1765861301333,0.68,126.42,126.39,8.68]
[1765861301756,3.56993107,126.42,126.39,8.68]
[1765861301957,0.78,126.43,126.4,0.68]
[1765861302152,0.78,126.43,126.41,7.91073787]
[1765861302350,0.1,126.43,126.41,7.91073787]
[1765861302553,0.1,126.43,126.41,8.59073787]
[1765861302963,0.1,126.43,126.42,0.68]
[1765861303259,0.1,126.43,126.42,12.37987599]
[1765861304047,0.1,126.53,126.46,21.85703612]
[1765861304245,0.1,126.53,126.49,2.88993107]
[1765861304559,0.68,126.52,126.48,11.69987599]
[1765861304765,0.68,126.52,126.49,7.9057633]
[1765861306030,8.58392162,126.52,126.48,16.71609111]
[1765861306358,0.68,126.52,126.48,17.39609111]
[1765861306562,0.68,126.52,126.48,20.2800484]
[1765861308761,0.68,126.52,126.48,17.39609111]
[1765861308945,2.88395729,126.49,126.45,8.58803723]
[1765861309144,2.88395729,126.5,126.46,8.68]
[1765861309455,2.88395729,126.48,126.46,8.68]
[1765861309638,13.86925277,126.49,126.47,8.68]
[1765861309959,13.86925277,126.49,126.39,101.45846906]
[1765861309960,13.0470912,126.45,126.39,3.56395729]
[1765861310147,3.56395729,126.44,126.4,8.68]
[1765861310340,3.56395729,126.44,126.41,8.68]
[1765861310540,0.68,126.43,126.41,8.68]
[1765861310748,8.58956065,126.43,126.41,8.68]
[1765861311132,0.68,126.42,126.41,8.68]
[1765861312334,13.0470912,126.45,126.41,8.68]
[1765861312537,13.0470912,126.45,126.42,0.68]
[1765861312538,13.0470912,126.44,126.42,0.68]
[1765861313036,8.5884892,126.45,126.41,20.154677]
[1765861314773,0.14216157,126.47,126.43,2.88395729]
[1765861315072,8.0491795,126.47,126.43,2.88395729]
[1765861315275,8.7291795,126.47,126.43,0.68]
[1765861315568,8.0491795,126.47,126.43,3.56395729]
[1765861315752,0.68,126.46,126.43,3.56395729]
[1765861316068,0.68,126.46,126.43,8.58935215]
[1765861316585,11.47167572,126.46,126.41,16.59037813]
[1765861316861,2.88395729,126.45,126.41,8.68]
[1765861317052,3.56395729,126.45,126.41,8.68]
[1765861317382,0.68,126.44,126.42,8.68]
[1765861318568,8.58791323,126.46,126.42,16.59001525]
[1765861318877,0.68,126.45,126.42,17.27001525]
[1765861319175,0.68,126.45,126.42,16.59001525]
[1765861320665,11.47222208,126.45,126.42,8.68]
[1765861320957,8.58826479,126.45,126.42,8.68]
[1765861321160,2.88395729,126.43,126.42,8.68]
[1765861321674,0.68,126.43,126.42,8.68]
[1765861322190,8.58951514,126.43,126.42,8.68]
[1765861322363,11.615634,126.43,126.42,8.68]
[1765861324756,20.295634,126.43,126.42,8.68]
[1765861325061,13.0470912,126.4,126.38,8.68]
[1765861325265,3.59395729,126.39,126.38,8.68]
[1765861326658,0.71,126.39,126.38,8.68]
[1765861326967,11.50597564,126.39,126.38,8.68]
[1765861327165,11.64813721,126.39,126.38,8.68]
[1765861328382,13.0470912,126.39,126.38,8.68]
[1765861328771,0.14216157,126.41,126.38,8.68]
[1765861328772,8.68,126.41,126.38,9.33]
[1765861328958,13.0470912,126.43,126.38,8.68]
[1765861329157,2.88395729,126.42,126.38,8.68]
[1765861329375,3.59395729,126.42,126.38,9.33]
[1765861329576,2.88395729,126.42,126.38,9.33]
[1765861329776,2.88395729,126.42,126.38,8.68]
[1765861329777,15.93104849,126.39,126.38,8.68]
[1765861330060,16.07321006,126.39,126.32,0.65]
[1765861330261,2.88395729,126.36,126.33,8.68]
[1765861330462,0.14216157,126.37,126.33,8.68]
[1765861330672,0.85216157,126.37,126.34,0.65]
[1765861330863,0.14216157,126.37,126.34,8.56496684]
[1765861331064,8.62292384,126.38,126.34,8.56496684]
[1765861331065,2.4,126.36,126.34,11.44892413]
[1765861331263,2.4,126.36,126.35,0.65]
[1765861331564,13.0470912,126.39,126.35,0.65]
[1765861331777,23.84321304,126.39,126.35,0.65]
[1765861331969,3.59395729,126.38,126.34,7.91496684]
[1765861332281,3.59395729,126.38,126.34,8.56496684]
[1765861332786,11.64974339,126.37,126.33,16.5956335]
[1765861333081,2.88395729,126.36,126.33,16.5956335]
[1765861333262,2.88395729,126.36,126.33,17.2456335]
[1765861333461,3.59395729,126.36,126.33,16.5956335]
[1765861333664,3.59395729,126.35,126.33,8.68]
[1765861334073,0.71,126.35,126.33,8.68]
[1765861335771,3.59395729,126.35,126.33,8.68]
[1765861337190,0.71,126.34,126.33,8.68]
[1765861337564,5.22959898,126.35,126.33,8.68]
[1765861340879,13.1441539,126.35,126.33,8.68]
[1765861341270,2.1,126.34,126.33,8.68]
[1765861341891,2.81,126.34,126.33,8.68]
[1765861342102,20.37669018,126.34,126.29,7.91823384]
[1765861342310,20.37669018,126.34,126.32,8.68]
[1765861342311,18.27669018,126.33,126.32,8.68]
[1765861342484,17.56669018,126.33,126.32,8.68]
[1765861342680,2.1,126.34,126.32,9.33]
[1765861342875,2.1,126.34,126.32,16.59599825]
[1765861343077,2.81,126.34,126.32,8.68]
[1765861343297,0.71,126.33,126.32,8.68]
[1765861343804,0.85216157,126.33,126.32,8.68]
[1765861344108,5.37176055,126.33,126.32,8.68]
[1765861344599,0.85216157,126.33,126.32,8.68]
[1765861344780,5.37176055,126.33,126.32,8.68]
[1765861345191,14.53506867,126.34,126.32,8.68]
[1765861345497,2.1,126.34,126.32,9.33]
[1765861345720,2.1,126.34,126.32,8.68]
[1765861345906,2.1,126.34,126.32,9.33]
[1765861346404,2.1,126.34,126.33,0.65]
[1765861348778,2.1,126.34,126.33,8.56577614]
[1765861350623,2.1,126.34,126.33,13.08537512]
[1765861351194,2.1,126.34,126.32,16.59610582]
[1765861351379,2.1,126.34,126.32,9.33]
[1765861352311,2.1,126.34,126.32,17.2463475]
[1765861352692,10.6753593,126.34,126.32,8.68]
[1765861353223,10.6753593,126.34,126.32,9.36]
[1765861353224,10.0153593,126.34,126.32,9.36]
[1765861353606,2.1,126.34,126.32,16.59632128]
[1765861353806,2.1,126.34,126.33,0.68]
[1765861353987,2.1,126.34,126.33,14.0095439]
[1765861354897,2.1,126.34,126.33,21.92532004]
[1765861355725,2.1,126.34,126.33,8.59577614]
[1765861357733,2.1,126.34,126.33,21.92532004]
[1765861358297,13.7070912,126.4,126.34,8.80994492]
[1765861358597,21.61850816,126.4,126.35,4.51959898]
[1765861358798,0.66,126.39,126.36,8.68]
[1765861359001,5.17959898,126.39,126.36,8.68]
[1765861359400,0.66,126.39,126.36,8.68]
[1765861360021,0.66,126.39,126.36,16.5936911]
[1765861360319,8.57212222,126.39,126.36,16.5936911]
[1765861360508,8.57212222,126.39,126.36,17.2736911]
[1765861360828,0.66,126.39,126.36,17.2736911]
[1765861361206,8.57221311,126.39,126.36,8.68]
[1765861361817,26.13830892,126.4,126.36,9.36]
[1765861362019,0.66,126.39,126.36,9.36]
[1765861362703,0.66,126.39,126.36,17.27382187]
[1765861363396,0.66,126.39,126.36,9.36]
[1765861363597,5.17959898,126.39,126.36,8.68]
[1765861364009,2.86,126.38,126.36,8.68]
[1765861365739,2.2,126.38,126.36,8.68]
[1765861365926,0.66,126.37,126.36,8.68]
[1765861366232,8.57327055,126.37,126.36,8.68]
[1765861368817,8.71543212,126.37,126.36,8.68]
[1765861369016,13.2350311,126.37,126.36,8.68]
[1765861371528,13.23411366,126.37,126.36,8.68]
[1765861371726,8.71543212,126.37,126.36,8.68]
[1765861371916,13.23411366,126.37,126.36,8.68]
[1765861372112,0.14216157,126.36,126.29,4.51868154]
[1765861372433,12.43320468,126.35,126.3,9.36]
[1765861372933,0.66,126.34,126.31,0.68]
[1765861373439,8.5751528,126.34,126.31,0.68]
[1765861373616,7.9151528,126.34,126.31,8.596981]
[1765861373808,8.57390292,126.36,126.31,32.90823636]
[1765861374135,8.57390292,126.36,126.32,0.68]
[1765861374518,7.91390292,126.36,126.32,0.68]
[1765861374720,4.51868154,126.33,126.3,9.36]
[1765861375115,5.17868154,126.33,126.3,9.36]
[1765861375316,12.4350545,126.33,126.3,8.68]
[1765861375519,0.66,126.32,126.3,8.68]
[1765861376913,0.66,126.32,126.29,8.59811324]
[1765861377127,0.66,126.32,126.31,8.68]
[1765861378021,13.0950545,126.33,126.31,8.68]
[1765861378819,12.4350545,126.33,126.31,8.68]
[1765861379016,13.0950545,126.33,126.31,8.68]
[1765861379217,8.57637296,126.33,126.31,8.68]
[1765861380320,13.0950545,126.33,126.31,8.68]
[1765861380927,0.66,126.32,126.31,8.68]
[1765861381136,5.17868154,126.32,126.31,8.68]
[1765861382042,8.57640278,126.32,126.31,8.68]
[1765861382258,8.73731116,126.34,126.31,8.68]
[1765861382429,0.68,126.33,126.31,8.68]
[1765861382622,5.19868154,126.33,126.31,8.68]
[1765861383141,27.84518515,126.34,126.31,8.68]
[1765861383445,0.68,126.32,126.31,8.68]
[1765861385228,13.11486459,126.33,126.31,8.68]
[1765861385661,8.59618305,126.33,126.31,8.68]
[1765861385827,4.66084311,126.34,126.31,9.34]
[1765861385828,12.57628474,126.34,126.31,9.34]
[1765861386025,20.96185564,126.35,126.32,0.66]
[1765861386528,13.0470912,126.35,126.32,0.66]
[1765861386944,13.0470912,126.35,126.32,8.5760531]
[1765861387141,13.0470912,126.35,126.33,0.66]
[1765861387339,8.59329833,126.37,126.33,0.66]
[1765861387560,12.43197987,126.37,126.33,0.66]
[1765861388052,13.11197987,126.37,126.33,0.66]
[1765861388273,0.14216157,126.36,126.33,0.66]
[1765861388561,0.82216157,126.36,126.33,0.66]
[1765861388762,0.14216157,126.36,126.33,0.66]
[1765861388948,4.66084311,126.36,126.33,0.66]
[1765861389143,7.91452314,126.35,126.33,0.66]
[1765861390243,12.57500955,126.36,126.33,0.66]
[1765861390873,8.05632801,126.36,126.33,0.66]
[1765861391740,7.91340397,126.37,126.33,8.57565435]
[1765861391949,20.96003101,126.38,126.33,13.09433589]
[1765861392157,21.64003101,126.38,126.34,0.66]
[1765861392472,21.64003101,126.38,126.35,8.68]
[1765861392672,2.1,126.37,126.35,8.68]
[1765861392837,2.1,126.37,126.35,9.34]
[1765861393030,2.1,126.37,126.36,0.66]
[1765861393450,2.1,126.37,126.35,17.25443171]
[1765861394454,2.1,126.37,126.35,9.34]
[1765861395065,0.68,126.43,126.36,21.90252326]
[1765861395280,5.19868154,126.44,126.39,4.51868154]
[1765861395452,8.58928015,126.44,126.4,8.68]
[1765861395777,0.68,126.43,126.4,8.68]
[1765861395949,0.68,126.44,126.4,13.19868154]
[1765861396152,5.19868154,126.44,126.4,8.68]
[1765861397243,0.68,126.44,126.4,8.68]
[1765861397584,8.58928743,126.44,126.4,8.68]
[1765861397975,13.10796897,126.44,126.4,8.68]
[1765861398165,0.68,126.43,126.4,8.68]
[1765861398370,0.68,126.43,126.4,16.59137504]
[1765861399584,13.18925277,126.45,126.4,36.36985605]
[1765861399786,13.7270912,126.45,126.4,39.25823176]
[1765861399949,0.68,126.44,126.4,39.25823176]
[1765861400589,0.68,126.44,126.4,16.59137504]
[1765861400814,3.56837571,126.44,126.4,16.59137504]
[1765861400953,0.68,126.44,126.4,16.59137504]
[1765861401151,0.14216157,126.44,126.4,16.59137504]
[1765861401357,0.82216157,126.44,126.4,16.59137504]
[1765861401853,8.73135352,126.44,126.4,16.59137504]
[1765861402288,8.05135352,126.44,126.4,16.59137504]
[1765861402472,3.56837571,126.43,126.4,8.68]
[1765861402676,0.68,126.43,126.4,8.68]
[1765861402876,0.68,126.42,126.4,8.68]
[1765861404964,8.5902815,126.42,126.4,8.68]
[1765861405284,0.68,126.42,126.4,8.68]
[1765861405811,8.59027272,126.42,126.4,8.68]
[1765861406172,3.71053728,126.41,126.4,8.68]
[1765861406375,0.82216157,126.41,126.4,8.68]
[1765861406578,3.71053728,126.41,126.4,8.68]
[1765861406781,3.71053728,126.41,126.34,7.91489604]
[1765861407089,2.88837571,126.38,126.37,8.68]
[1765861407498,3.56837571,126.38,126.37,8.68]
[1765861408086,11.62318168,126.38,126.37,8.68]
[1765861409471,8.73480597,126.38,126.37,8.68]
[1765861410184,0.68,126.4,126.37,8.68]
[1765861410493,0.68,126.39,126.37,8.68]
[1765861410678,3.56837571,126.39,126.37,8.68]
[1765861411085,10.79998652,126.4,126.37,9.34]
[1765861411273,11.47998652,126.4,126.37,8.68]
[1765861411599,0.68,126.39,126.37,8.68]
[1765861411769,7.91161081,126.4,126.37,8.68]
[1765861412095,11.47998652,126.4,126.37,8.68]
[1765861412302,0.67,126.39,126.37,16.59316719]
[1765861413310,0.67,126.39,126.37,8.68]
[1765861414101,16.60546691,126.42,126.38,0.7]
[1765861414291,7.90976364,126.43,126.39,7.91201835]
[1765861414492,11.46813935,126.43,126.39,7.91201835]
[1765861414697,10.79813935,126.43,126.39,8.61201835]
[1765861414876,0.67,126.42,126.39,8.61201835]
[1765861417502,13.0470912,126.44,126.4,0.7]
[1765861417687,11.46702034,126.45,126.41,8.68]
[1765861417881,11.46702034,126.45,126.42,0.7]
[1765861418404,8.57864463,126.45,126.42,0.7]
[1765861419803,0.67,126.45,126.42,8.60993743]
[1765861420102,3.55837571,126.44,126.41,8.68]
[1765861420483,0.67,126.43,126.41,8.68]
[1765861420817,2.88837571,126.42,126.41,8.68]
[1765861420998,3.03053728,126.42,126.41,8.68]
[1765861421190,3.70053728,126.42,126.41,8.68]
[1765861421397,24.65776928,126.42,126.41,8.68]
[1765861430518,23.98776928,126.42,126.41,8.68]
[1765861431086,24.65776928,126.42,126.41,8.68]
[1765861439504,24.65921846,126.42,126.41,8.68]
[1765861440830,16.60691609,126.42,126.41,8.68]
[1765861441006,13.0470912,126.42,126.41,8.68]
[1765861441433,15.93691609,126.42,126.41,8.68]
[1765861441936,23.84705689,126.42,126.41,8.68]
[1765861443357,24.70921846,126.42,126.41,8.68]
[1765861443908,27.59904335,126.42,126.41,8.68]
[1765861445932,24.70921846,126.42,126.41,8.68]
[1765861446520,13.0470912,126.42,126.41,8.68]
[1765861446715,15.93691609,126.42,126.41,8.68]
[1765861447037,23.84705689,126.42,126.41,8.68]
[1765861449642,24.56705689,126.42,126.41,8.68]
[1765861454147,21.677232,126.42,126.41,8.68]
[1765861454325,24.56705689,126.42,126.41,8.68]
[1765861454530,21.677232,126.42,126.41,8.68]
[1765861454841,24.56705689,126.42,126.41,8.68]
[1765861456229,24.70921846,126.42,126.41,8.68]
[1765861457141,23.98921846,126.42,126.41,8.68]
[1765861457342,23.84705689,126.42,126.41,8.68]
[1765861458134,24.56705689,126.42,126.41,8.68]
[1765861458716,23.84705689,126.42,126.41,8.68]
[1765861459436,25.47173966,126.42,126.41,8.68]
[1765861459638,20.957232,126.42,126.41,8.68]
[1765861459833,25.47173966,126.42,126.41,8.68]
[1765861460025,26.19173966,126.42,126.41,8.68]
[1765861460226,26.33390123,126.42,126.41,8.68]
[1765861464955,21.81939357,126.42,126.41,8.68]
[1765861465160,26.33390123,126.42,126.41,8.68]
[1765861476563,0.14216157,126.41,126.37,17.26301805]
[1765861476757,4.51450766,126.4,126.38,0.67]
[1765861479172,12.42618052,126.4,126.38,0.67]
[1765861481179,4.51450766,126.4,126.38,0.67]
[1765861482067,13.23762087,126.41,126.38,0.67]
[1765861487376,8.72311321,126.41,126.38,0.67]
[1765861487562,13.23762087,126.41,126.38,0.67]
[1765861490763,20.95736011,126.42,126.38,8.58257024]
[1765861490982,26.14186777,126.42,126.38,8.58257024]
[1765861491183,26.14186777,126.42,126.39,0.67]
[1765861491681,5.18450766,126.44,126.39,0.67]
[1765861491889,5.18450766,126.44,126.4,7.9113924]
[1765861491890,13.09361807,126.44,126.4,7.9113924]
[1765861492095,13.09361807,126.44,126.41,8.68]
[1765861492385,13.09361807,126.44,126.41,9.35]
[1765861493180,13.09354509,126.44,126.41,9.35]
[1765861493379,8.57903743,126.44,126.41,9.35]
[1765861493560,0.67,126.43,126.41,9.35]
[1765861493760,4.51450766,126.43,126.41,9.35]
[1765861494286,8.57903743,126.44,126.41,9.35]
[1765861494462,4.51450766,126.43,126.41,9.35]
[1765861494662,8.57903743,126.44,126.41,9.35]
[1765861494863,13.09354509,126.44,126.41,17.26070837]
[1765861495488,13.09354509,126.44,126.41,9.35]
[1765861495680,17.56159886,126.45,126.42,0.67]
[1765861495908,0.81216157,126.47,126.42,0.67]
[1765861495909,4.65666923,126.47,126.42,0.67]
[1765861496060,0.81216157,126.47,126.42,0.67]
[1765861496364,5.18450766,126.47,126.42,0.67]
[1765861496566,13.09167496,126.47,126.42,0.67]
[1765861497385,32.95559231,126.48,126.42,8.5797236]
[1765861497386,8.57770605,126.46,126.42,8.5797236]
[1765861497588,4.51450766,126.45,126.42,8.5797236]
[1765861497886,13.09221371,126.46,126.43,0.67]
[1765861498957,8.57770605,126.46,126.43,0.67]
[1765861499172,13.09221371,126.46,126.43,0.67]
[1765861500589,13.09221371,126.46,126.43,8.57950927]
[1765861500900,12.42178885,126.47,126.43,8.57950927]
[1765861501072,13.09178885,126.47,126.44,0.67]
[1765861501273,13.09178885,126.47,126.45,8.68]
[1765861501790,327.64578811,126.52,126.46,0.67]
[1765861501791,8.57533059,126.5,126.46,0.67]
[1765861502091,4.51450766,126.49,126.46,0.67]
[1765861502289,0.67,126.5,126.46,0.67]
[1765861502460,4.51450766,126.5,126.46,0.67]
[1765861502660,0.76,126.53,126.47,4.51450766]
[1765861502896,4.61450766,126.53,126.48,5.19450766]
[1765861503102,4.61450766,126.53,126.49,8.68]
[1765861503103,4.51450766,126.51,126.49,8.68]
[1765861503415,4.51450766,126.5,126.49,8.68]
[1765861503555,0.14216157,126.51,126.49,9.36]
[1765861503760,13.0470912,126.51,126.5,0.68]
[1765861503995,13.0470912,126.51,126.49,8.68]
[1765861504183,13.0470912,126.51,126.49,9.36]
[1765861504383,4.51450766,126.51,126.49,9.36]
[1765861504690,5.17450766,126.52,126.49,9.36]
[1765861505061,0.66,126.52,126.49,9.36]
[1765861505258,0.1,126.53,126.5,0.68]
[1765861505471,4.61450766,126.53,126.5,0.68]
[1765861505696,13.1470912,126.53,126.5,0.68]
[1765861505862,0.1,126.53,126.5,0.68]
[1765861506262,5.27450766,126.53,126.5,0.68]
[1765861507222,0.80216157,126.52,126.49,8.68]
[1765861507419,5.31666923,126.52,126.49,8.68]
[1765861507712,0.80216157,126.52,126.49,8.68]
[1765861508010,4.51450766,126.51,126.49,8.68]
[1765861508184,5.17450766,126.51,126.49,8.68]
[1765861508812,5.16842542,126.51,126.49,8.68]
[1765861509122,12.41319388,126.51,126.49,8.68]
[1765861509289,0.66,126.5,126.49,8.68]
[1765861509483,5.16842542,126.5,126.49,8.68]
[1765861509910,4.50842542,126.5,126.49,8.68]
[1765861510295,13.07319388,126.51,126.49,8.68]
[1765861511092,8.56476846,126.51,126.49,8.68]
[1765861511293,13.07319388,126.51,126.49,8.68]
[1765861512321,4.50842542,126.5,126.49,8.68]
[1765861512535,7.90476846,126.51,126.49,8.68]
[1765861512536,8.56476846,126.51,126.49,8.68]
[1765861512806,4.50842542,126.5,126.49,8.68]
[1765861513022,8.56476846,126.51,126.49,8.68]
[1765861513193,13.07319388,126.51,126.49,8.68]
[1765861513718,12.41319388,126.51,126.49,9.36]
[1765861513908,13.07319388,126.51,126.49,8.68]
[1765861514106,5.31058699,126.5,126.49,8.68]
[1765861514311,13.21572532,126.5,126.49,8.68]
[1765861514516,13.21572532,126.5,126.45,8.68]
[1765861514517,32.97857116,126.5,126.45,8.68]
[1765861514691,0.14216157,126.48,126.45,8.68]
[1765861514893,4.50842542,126.46,126.45,8.68]
[1765861515097,4.65058699,126.46,126.45,8.68]
[1765861515406,5.31058699,126.46,126.45,8.68]
[1765861515953,4.65058699,126.46,126.45,8.68]
[1765861516092,0.14216157,126.46,126.45,8.68]
[1765861516296,4.65058699,126.46,126.45,8.68]
[1765861517105,5.31058699,126.46,126.45,8.68]
[1765861517300,13.21822576,126.46,126.45,8.68]
[1765861517789,5.31058699,126.46,126.45,8.68]
[1765861517990,4.50842542,126.46,126.45,8.68]
[1765861518199,4.65058699,126.48,126.45,17.26810859]
[1765861518519,4.50842542,126.48,126.46,0.68]
[1765861519027,4.50842542,126.49,126.46,0.68]
[1765861519423,13.07373562,126.5,126.46,0.68]
[1765861519798,12.41373562,126.5,126.46,8.58751195]
[1765861519999,0.66,126.49,126.46,8.58751195]
[1765861520201,12.41373562,126.5,126.46,8.58751195]
[1765861520527,5.16842542,126.49,126.46,8.58751195]
[1765861520721,5.16842542,126.49,126.46,7.90751195]
[1765861520927,0.66,126.48,126.46,7.90751195]
[1765861521611,10.79210795,126.49,126.46,7.90751195]
[1765861521815,11.45170183,126.5,126.47,0.68]
[1765861522016,11.45170183,126.5,126.48,8.68]
[1765861522706,10.79170183,126.5,126.48,8.68]
[1765861522908,0.66,126.49,126.48,8.68]
[1765861523331,3.54633931,126.49,126.48,8.68]
[1765861523527,0.66,126.49,126.48,8.68]
[1765861523918,10.79170183,126.5,126.48,8.68]
[1765861524219,11.45170183,126.5,126.48,8.68]
[1765861525332,2.88633931,126.49,126.48,8.68]
[1765861525513,3.68850088,126.49,126.48,8.68]
[1765861525917,0.80216157,126.49,126.48,8.68]
[1765861526128,3.68850088,126.49,126.48,8.68]
[1765861527130,8.70792487,126.49,126.48,8.68]
[1765861527308,11.59426418,126.49,126.48,8.68]
[1765861529644,8.70792487,126.49,126.48,8.68]
[1765861529848,10.79210261,126.49,126.48,8.68]
[1765861530141,8.56524945,126.5,126.48,8.68]
[1765861530350,11.45158876,126.5,126.48,8.68]
[1765861530725,3.54633931,126.49,126.48,8.68]
[1765861531932,3.54633931,126.49,126.42,8.59012124]
[1765861531933,13.0470912,126.48,126.42,8.59012124]
[1765861532257,2.88633931,126.44,126.43,8.68]
[1765861532745,3.55633931,126.44,126.4,0.68]
[1765861532933,3.55633931,126.43,126.41,8.68]
[1765861533132,2.88633931,126.42,126.41,8.68]
[1765861533324,19.48976982,126.42,126.35,0.68]
[1765861533525,2.88633931,126.38,126.36,8.68]
[1765861533952,2.88633931,126.38,126.36,9.36]
[1765861536255,10.79836579,126.39,126.37,0.68]
[1765861536637,2.88633931,126.4,126.37,0.68]
[1765861536946,16.60343051,126.42,126.37,0.68]
[1765861537139,3.55633931,126.41,126.37,0.68]
[1765861538257,3.55633931,126.41,126.37,8.59283482]
[1765861538758,11.46711627,126.41,126.38,0.68]
[1765861540852,2.88633931,126.4,126.37,8.59283482]
[1765861541060,2.88633931,126.4,126.38,0.68]
[1765861541465,3.55633931,126.4,126.37,7.91283482]
[1765861541668,0.67,126.4,126.37,7.91283482]
[1765861541875,3.55633931,126.4,126.37,0.68]
[1765861542076,2.88633931,126.39,126.36,17.27376268]
[1765861542257,0.67,126.4,126.36,17.27376268]
[1765861542258,0.81216157,126.4,126.36,17.27376268]
[1765861542557,3.55633931,126.39,126.36,17.27376268]
[1765861543474,2.88633931,126.39,126.37,0.68]
[1765861544364,3.55633931,126.39,126.36,16.59376268]
[1765861544565,3.55633931,126.39,126.36,17.27376268]
[1765861544957,10.94023844,126.4,126.37,0.68]
[1765861545174,11.61023844,126.4,126.37,0.68]
[1765861545368,8.72389913,126.4,126.37,0.68]
[1765861545670,11.61023844,126.4,126.37,0.68]
[1765861547870,11.61023844,126.4,126.36,16.59376268]
[1765861548072,11.61023844,126.4,126.36,17.27376268]
[1765861548278,10.94023844,126.4,126.36,17.27376268]
[1765861548647,32.82310658,126.42,126.37,8.59297766]
[1765861548648,7.91093016,126.41,126.37,8.59297766]
[1765861548844,2.88633931,126.41,126.37,8.59297766]
[1765861549170,2.88633931,126.39,126.37,8.59297766]
[1765861549484,3.55633931,126.4,126.37,8.59297766]
[1765861549980,0.67,126.39,126.37,7.91297766]
[1765861550169,3.55633931,126.4,126.37,8.59297766]
[1765861550672,0.67,126.39,126.36,16.59379608]
[1765861550869,2.88633931,126.39,126.37,0.68]
[1765861551061,3.55633931,126.39,126.36,17.27379608]
[1765861553080,2.88633931,126.38,126.36,8.68]
[1765861553255,3.55633931,126.38,126.36,8.68]
[1765861553446,2.88633931,126.37,126.36,8.68]
[1765861554058,0.67,126.38,126.36,8.68]
[1765861554258,2.88633931,126.37,126.36,8.68]
[1765861554583,3.55633931,126.38,126.36,8.68]
[1765861555177,2.88633931,126.38,126.36,8.68]
[1765861555358,2.88633931,126.38,126.36,9.36]
[1765861555758,3.55633931,126.38,126.36,8.68]